Cogmind - Beta 13 @@@ ROGUE MODE // 2024.04.01 @ 20:03:13 Player: Alvin Result: Destroyed by Y-45 Defender with Heavy Assault Rifle Performance ------------- Evolutions (1) 500 Regions Visited (3) 600 Robots Destroyed (8) 40 Value Destroyed (354) 354 Prototype IDs (0) 0 Alien Tech Used (0) 0 Bonus (0) 0 TOTAL SCORE: 1494 Bonus ------- None Cogmind --------- Core Integrity 0/400 Matter 300/300 Energy 100/100 System Corruption 0% Temperature Cool (0) Movement Core (150) Ox2 Location -9/Materials Parts ------- > --- POWER (1) -------- (None) > --- PROPULSION (3) --- (None) > --- UTILITY (3) ------ Small Storage Unit Utility Shielding > --- WEAPON (2) ------- Maul > --- INVENTORY (8) ---- Heat Sink Mini Grenade Launcher Welding Torch Peak State ------------ > --- POWER ------------ Ion Engine > --- PROPULSION ------- Light Treads Light Treads Light Treads > --- UTILITY ---------- Small Storage Unit Utility Shielding Light Armor Plating > --- WEAPON ----------- Small Laser Beam Rifle > --- INVENTORY -------- Aluminum Leg Aluminum Leg Heat Sink Light Armor Plating Heavy Assault Rifle Mini Grenade Launcher Welding Torch Maul [Rating: 11] Favorites ----------- Power Ion Engine Engine Ion Engine Propulsion Light Treads Treads Light Treads Leg Aluminum Leg Wheel Wheel Utility Small Storage Unit Storage Small Storage Unit Protection Light Armor Plating Weapon Assault Rifle Energy Gun Small Laser Ballistic Gun Assault Rifle Impact Weapon Maul Build | -11 -10 -10 -9 ------- Run | Yrd Mat Min Mat Slots Evolved 2 | . . . 2 Power . | . . . . Propulsion 1 | . . . 1 Utility 1 | . . . 1 Weapon . | . . . . Parts Attached 34 | 6 6 6 16 Power 3 | 1 1 . 1 Engine 3 | 1 1 . 1 Core . | . . . . Reactor . | . . . . Propulsion 13 | 2 2 2 7 Treads 7 | . . 2 5 Leg 2 | . . . 2 Wheel 4 | 2 2 . . Hover . | . . . . Flight . | . . . . Utility 6 | 1 1 2 2 Device . | . . . . Storage 1 | 1 . . . Processor . | . . . . Hackware . | . . . . Protection 5 | . 1 2 2 Artifact . | . . . . Weapon 12 | 2 2 2 6 Energy Gun 6 | . 1 1 4 Energy Cannon . | . . . . Ballistic Gun 5 | 2 1 1 1 Ballistic Cannon . | . . . . Launcher . | . . . . Special Weapon . | . . . . Impact Weapon 1 | . . . 1 Slashing Weapon . | . . . . Piercing Weapon . | . . . . Special Melee Weapon . | . . . . Unidentified Prototypes . | . . . . Parts Lost 16 | . . 4 12 Power 1 | . . . 1 Propulsion 7 | . . 2 5 Utility 3 | . . 1 2 Weapon 5 | . . 1 4 Highest Loss Streak 7 | . . 4 7 To Critical Strikes . | . . . . Average Slot Usage (%) 88 | . 80 97 82 Engine 11 | . 12 14 8 Treads 11 | . . 2 22 Leg 1 | . . . 2 Wheel 12 | . 21 24 . Storage 12 | . 14 14 11 Protection 14 | . 4 12 18 Energy Gun 8 | . 1 2 15 Ballistic Gun 13 | . 24 24 2 Impact Weapon 1 | . . . 2 Naked Turns . | . . . . Heaviest Build 19 | 13 14 19 19 Greatest Support 60 | 20 20 40 60 Greatest Overweight (x) 4 | 1 1 . 4 Average Overweight (x) . | . . . . Largest Inventory Capacity 8 | 8 8 8 8 Average Capacity 7 | 7 8 8 8 Most Carried 8 | 4 5 7 8 Average Carried 4 | 2 3 6 4 Final Capacity 8 | 8 8 8 8 Final Carried 4 | 4 2 3 3 Class Distribution -------------------- 97% | Mutant Dominant Class ---------------- Mutant | -10/Materials Mutant | -10/Mines Mutant | -9/Materials Resources | -11 -10 -10 -9 ----------- Run | Yrd Mat Min Mat Matter Collected 541 | 221 . 128 192 Remotely . | . . . . Salvage Created 364 | . . 103 261 Parts 14 | . . 6 8 Haulers Intercepted . | . . . . Recyclers Shooed . | . . . . Parts Field Recycled . | . . . . Retrieved Matter . | . . . . Parts Self-Destructed . | . . . . Prevented . | . . . . Kills | -11 -10 -10 -9 ------- Run | Yrd Mat Min Mat Combat Hostiles Destroyed 8 | . . 2 6 Melee 1 | . . . 1 Guns 6 | . . 2 4 Classes Destroyed 2 | . . 1 1 Grunt 5 | . . . 5 Sentry 3 | . . 2 1 Best Kill Streak 2 | . . 2 2 Combat Bots Only 2 | . . 2 2 Max Kills in Single Turn 1 | . . 1 1 Gunslinging . | . . . . Exploded . | . . . . Melee 1 | . . . 1 Uniques/NPCs Destroyed . | . . . . Combat | -11 -10 -10 -9 -------- Run | Yrd Mat Min Mat Hostile Shots Fired 157 | . . 20 137 Missed 36 | . . 1 35 Damage Taken 2048 | . . 575 1473 Core 466 | . . 58 408 Absorbed by Shields . | . . . . Redirected to Shielding 28 | . . . 28 Core Remaining (%) 88 | 100 . 76 . Volleys Fired 38 | . . 7 31 Largest 2 | . . 2 2 Hottest 96 | . . 60 96 Shots Fired 61 | . . 14 47 Gun 61 | . . 14 47 Cannon . | . . . . Launcher . | . . . . Special . | . . . . Kinetic 22 | . . 11 11 Thermal 39 | . . 3 36 Explosive . | . . . . Electromagnetic . | . . . . Robot Hit Streak 10 | . . 10 7 Robot Miss Streak 4 | . . 1 4 Penetration Max . | . . . . Secondary Targets . | . . . . Shots Hit Robots 48 | . . 12 36 Core Hits 18 | . . 6 12 Critical Kills 1 | . . . 1 Critical Parts Destroyed . | . . . . Critical Strikes 2 | . . . 2 Burn 1 | . . . 1 Smash 1 | . . . 1 Melee Attacks 12 | . . . 12 Impact 12 | . . . 12 Slashing . | . . . . Piercing . | . . . . Sneak Attacks . | . . . . Combat Hostiles . | . . . . Follow-up Attacks . | . . . . Damage Inflicted 812 | . . 159 653 Guns 569 | . . 159 410 Cannons . | . . . . Explosions . | . . . . Melee 243 | . . . 243 Ramming . | . . . . Kinetic 260 | . . 125 135 Thermal 309 | . . 34 275 Explosive . | . . . . Electromagnetic . | . . . . Impact 243 | . . . 243 Slashing . | . . . . Piercing . | . . . . Highest Corruption . | . . . . Average Corruption . | . . . . Corruption Purged . | . . . . Corruption Blocked . | . . . . Overload Shots . | . . . . Overflow Damage 26 | . . . 26 Projectiles . | . . . . Explosions . | . . . . Melee 26 | . . . 26 Knockbacks 2 | . . . 2 Impact 2 | . . . 2 Kinetic . | . . . . Secondary . | . . . . Self-Inflicted Damage . | . . . . Shots . | . . . . Rammed . | . . . . Targets Rammed . | . . . . Kicked . | . . . . Crushed . | . . . . Highest Temperature 292 | . . 18 292 Average Temperature 101 | . . 14 109 Received Heat Transfer 639 | . . 18 621 Effects 1 | . . . 1 Energy Bleed 1 | . . . 1 Siege Activations . | . . . . Robots Corrupted . | . . . . Combat Hostiles . | . . . . Parts Fried . | . . . . Impact Corruptions 2 | . . . 2 Robots Melted . | . . . . Combat Hostiles . | . . . . Parts Melted 3 | . . . 3 Heat Transferred 819 | . . 75 744 Parts Sabotaged . | . . . . Parts Stolen . | . . . . Parts Stripped . | . . . . Power Chain Reactions . | . . . . Alert | -11 -10 -10 -9 ------- Run | Yrd Mat Min Mat Peak Influence 137 | . 15 60 137 Initial 7 | . . 5 7 Average 47 | . 11 48 65 Maximum Alert Level . | . . . . Low Security (%) 100 | 100 100 100 100 Level 1 . | . . . . Level 2 . | . . . . Level 3 . | . . . . Level 4 . | . . . . Level 5 . | . . . . High Security . | . . . . Max Security . | . . . . Squads Dispatched 2 | . 2 . . Investigation . | . . . . Extermination . | . . . . Reinforcement 2 | . 2 . . Assault . | . . . . Garrison . | . . . . Intercept . | . . . . Searches Triggered . | . . . . Construction Impeded . | . . . . Haulers Reinforced . | . . . . Active Scanning Responses . | . . . . Cargo Convoy Interrupts . | . . . . Stealth | -11 -10 -10 -9 --------- Run | Yrd Mat Min Mat Distress Signals 2 | . . . 2 Communications Jammed . | . . . . Distress Signals . | . . . . Times Spotted 17 | . 1 3 13 Peak Tracking Total 7 | . 3 2 7 Tactical Retreats . | . . . . Traps | -11 -10 -10 -9 ------- Run | Yrd Mat Min Mat Traps Triggered 7 | . 3 . 4 Indirectly . | . . . . Trap Hack Attempts . | . . . . Triggered . | . . . . Disarmed . | . . . . Reprogrammed . | . . . . Reused . | . . . . Traps Extracted . | . . . . Installed . | . . . . Triggered . | . . . . Machines | -11 -10 -10 -9 ---------- Run | Yrd Mat Min Mat Machines Disabled 1 | . . . 1 Max in Single Turn 1 | . . . 1 Machines Repaired . | . . . . Machines Dismantled . | . . . . Machines Sabotaged . | . . . . Overloaded Fab Kills . | . . . . Hacking | -11 -10 -10 -9 --------- Run | Yrd Mat Min Mat Machines Accessed 1 | . 1 . . Terminals 1 | . 1 . . Fabricators . | . . . . Repair Stations . | . . . . Recycling Units . | . . . . Scanalyzers . | . . . . Garrison Access . | . . . . Total Hacks 1 | . 1 . . Successful . | . . . . Failed 1 | . 1 . . Catastrophic . | . . . . Database Lockouts . | . . . . Manual . | . . . . Terminals 1 | . 1 . . Fabricators . | . . . . Repair Stations . | . . . . Recycling Units . | . . . . Scanalyzers . | . . . . Garrison Access . | . . . . Terminal Hacks . | . . . . Fabricator Hacks . | . . . . Repair Station Hacks . | . . . . Recycling Unit Hacks . | . . . . Scanalyzer . | . . . . Garrison Access Hacks . | . . . . Unauthorized Hacks . | . . . . Terminals . | . . . . Fabricators . | . . . . Repair Stations . | . . . . Recycling Units . | . . . . Scanalyzers . | . . . . Garrison Access . | . . . . Data Cores Recovered . | . . . . Used . | . . . . Hacking Detections 1 | . 1 . . Full Trace Events . | . . . . Feedback Events . | . . . . Feedback Blocked . | . . . . Robot Schematics Acquired . | . . . . Robots Built . | . . . . Authchips . | . . . . Time . | . . . . Total Robot Build Rating . | . . . . Part Schematics Acquired . | . . . . Parts Built . | . . . . Authchips . | . . . . Time . | . . . . Total Part Build Rating . | . . . . Parts Repaired . | . . . . Time . | . . . . Parts Recycled . | . . . . Recycled Matter . | . . . . Retrieved Matter . | . . . . Retrieved Components . | . . . . Parts Scanalyzed . | . . . . Part Schematics Acquired . | . . . . Parts Damaged . | . . . . Bothacking | -11 -10 -10 -9 ------------ Run | Yrd Mat Min Mat Used RIF Installer . | . . . . Robots Hacked . | . . . . Non-combat . | . . . . Combat . | . . . . Robot Hacks Applied . | . . . . Relay Couplers Released . | . . . . Fabnet Peak Effective % . | . . . . Robots Rewired . | . . . . Allies Hacked . | . . . . Hacks Repelled . | . . . . Allies | -11 -10 -10 -9 -------- Run | Yrd Mat Min Mat Total Allies . | . . . . Largest Group . | . . . . Highest-Rated Group . | . . . . Highest-Rated Ally . | . . . . Total Orders . | . . . . Ally Attacks . | . . . . Total Damage . | . . . . Kills . | . . . . Allies Corrupted . | . . . . Allies Melted . | . . . . Intel | -11 -10 -10 -9 ------- Run | Yrd Mat Min Mat Robot Analysis Total . | . . . . Derelict Logs Recovered 1 | . . 1 . Drone Launches . | . . . . Drone Recoveries . | . . . . Exploration | -11 -10 -10 -9 ------------- Run | Yrd Mat Min Mat Turns Passed 953 | 92 92 354 415 Spaces Moved 728 | 90 97 377 164 Core 13 | 3 . . 10 Treads 178 | . . 25 153 Legs 1 | . . . 1 Wheels 536 | 87 97 352 . Hover . | . . . . Flight . | . . . . Fastest Speed 50 | 50 80 80 150 Average Speed 101 | 79 84 85 161 Slowest Speed 250 | 95 95 160 250 Overloaded Moves . | . . . . Propulsion Burnouts . | . . . . Robots Hopped . | . . . . Cave-ins Triggered . | . . . . Exploration Rate (%) 34 | 5 23 88 23 Regions Visited 3 Branch Regions 1 Pre-discovered Areas 1 | . . 1 . Known Exits Taken . | . . . . Unknown Exits Taken 3 | 1 1 1 . Scrap Searched 1 | . . 1 . Spaces Dug . | . . . . Terrain Destroyed . | . . . . Melee . | . . . . Projectile . | . . . . AOE . | . . . . Terrain Rammed . | . . . . Walls Destroyed . | . . . . Machines Disabled . | . . . . Actions | -11 -10 -10 -9 --------- Run | Yrd Mat Min Mat Total 855 | 109 106 397 243 Wait 8 | 4 . . 4 Move 725 | 89 96 376 164 Hop . | . . . . Pick Up 36 | 10 4 6 16 Fast Attach . | . . . . Attach 34 | 6 6 6 16 Detach 1 | . . 1 . Swap . | . . . . Drop 1 | . . 1 . Fire 38 | . . 7 31 Melee 12 | . . . 12 Ram . | . . . . Kick . | . . . . Crush . | . . . . Escape Stasis . | . . . . Rewire . | . . . . Trap . | . . . . Miscellaneous . | . . . . Route ------- -11/Scrapyard -10/Materials -10/Mines -9/Materials History --------- Turn | Location | Event 39 | -11/Scrapyard | Discovered new exit (range 16) 93 | -11/Scrapyard | Entered Materials 135 | -10/Materials | Discovered new exit (range 16) 185 | -10/Materials | Entered Mines 318 | -10/Mines | Build established: Mutant 519 | -10/Mines | Discovered new exit (range 13) 530 | -10/Mines | Lost 4 parts (2n1u1w) 539 | -10/Mines | Entered Materials 539 | -9/Materials | Evolved 2 slots: Propulsion x1, Utility x1 911 | -9/Materials | Core integrity fell below 50% 943 | -9/Materials | Lost 7 parts (1p3n1u2w) 946 | -9/Materials | Core integrity fell below 20% 954 | -9/Materials | Destroyed by Y-45 Defender with Heavy Assault Rifle Last Messages --------------- 00902_ K-01 Serf collects debris. 00909_ Aluminum Leg destroyed. 00909_ K-01 Serf collects debris. 00911_ Destroyed Particle Gun. 00911_ Destroyed Aluminum Leg. 00911_ G-47 Trooper system corrupted by crushing effect. 00912_ G-47 Trooper system terminally corrupted. 00912_ Lgt. Treads destroyed. 00913_ K-01 Serf collects debris. 00915_ R-06 Scavenger collects Wheel. 00916_ K-01 Serf collects debris. 00948_ Aluminum Leg destroyed. 00948_ K-01 Serf collects debris. 00950_ Hvy. Assault Rifle destroyed. 00951_ G-47 Trooper suffers critical hit (Smash). 00951_ G-47 Trooper destroyed. 00952_ Acquired 43 matter. 00952_ K-01 Serf collects debris. Map ----- +----------------------------------------------------+ | ???????????????????????????????? | | ???????????????????????????????? | | ???????????????????????????????? | | ???????????????????????????????? | | ???????????????????????????????? | | ???????????????????????????????? | | ???????????????????????????????? | | ???????????????????????????????? | | ???????????????????????????????? | | ???????????????????????????????? | | ???????????????????????????????? | | ???????????????????????????????? | | ???????????????????????????????? | | ???????????????????????????????? | | ????????? ???????????????????? | | ????????# #??????????????????? | | ???????## ##?????????????????? | | ???????# #?????????????????? | | ???????# #?????????????????? | | ???????? +?????????????????? | | ???????? #?????????????????? | | ???????? #?????????????????? | | ######### #??????????????????? | | # #% #??????????????????? | | # # #??????????????????? | | # @/ #??????????????????? | | # k # #??????????????????? | | # # #???##########?????? | | # g # ##### ##### | | # k gY#% | | # k + | | # # """ | | # ###### """ ##### | | # #????# """ #####?????? | | ############## """ ########### | | ????? ## # | | ??????????#### ## """ + | | ?????????????# "" ## """ # | | ?????????????# "" %## """ # | | ?????????????+ """ # # | | ?????????????# """ + """ # | | ?????????????# # """ # | | ?????????????# # """ # | | ?????????????# """ # # | | ?????????????# """ #######+## | | ?????????????# """ | | ?????????????# ########## | | ??????????????? ! ##????????? | | ??????????????? #?????????? | | ?????????????? #?????????? | +----------------------------------------------------+ Best States ------------- Heat Dissipation 28 Energy Generation 10 Energy Capacity 250 Matter Stores 300 Matter Capacity 300 Sight Range 16 Terrain Scan Density 10 Armor Coverage 150 Utility Shielding 33 Evasion (%) 44 Recoil Reduction 3 Item Schematics ----------------- None Robot Schematics ------------------ None Fabricated ------------ Nothing Alien Tech Used ----------------- None Achievements -------------- None Challenges ------------ None Game ------ Seed VortexProtonInterrupter Manual? 0 Play Time 00:14:38 Cumulative 32.0 hours Start 2024.04.01 @ 19:48:46 End 2024.04.01 @ 20:03:13 Sessions 1 Manual Loads 0 Difficulty Rogue Special Mode None Game No. 46 Rogue 46 Adventurer 0 Explorer 0 Win Type - Total 0 Types 0/0/0/0/0/0/0/0/0 Lore% 16 Gallery% 30 Achievement% 20 Wizard Run 0 Options --------- Layout 1 ASCII 0 Keyboard 0 Movement Arrows Keybinds 0 Fullscreen 1 Font 16/SmallcapsGlow Map View 50x40 Zoom Use 0% Tactical HUD 1 Map Filters NONE Filters NONE Steam SD RUN: 5c93ba90-b31e-472d-82a1-b0da9c57eb7c